Cogmind - Beta 13 @@@ ROGUE MODE // 2024.04.04 @ 18:52:17 Player: Oldman Pu Result: Destroyed by G-47 Trooper with Particle Gun Performance ------------- Evolutions (2) 1000 Regions Visited (3) 600 Robots Destroyed (65) 325 Value Destroyed (1959) 1959 Prototype IDs (2) 40 Alien Tech Used (0) 0 Bonus (448) 448 TOTAL SCORE: 4372 Bonus ------- High Alert Combat Kills 448 Cogmind --------- Core Integrity 0/550 Matter 236/300 Energy 70/100 System Corruption 1% Temperature Cool (27) Movement Core (800) Ox15 Location -8/Materials Parts ------- > --- POWER (1) -------- (None) > --- PROPULSION (4) --- (None) > --- UTILITY (4) ------ Heat Sink High-capacity Storage Unit Targeting Computer Light Armor Plating > --- WEAPON (2) ------- Beam Rifle Light Assault Rifle (fused) > --- INVENTORY (20) --- Light Deuterium Engine Light Nuclear Core Carbon-fiber Leg Large Battery (200) High-capacity Matter Pod (200) Particle Gun Spread Laser Particle Cannon Light Assault Rifle Katana Peak State ------------ > --- POWER ------------ Ion Engine > --- PROPULSION ------- Xenon Bombardment Thruster Xenon Bombardment Thruster Xenon Bombardment Thruster Xenon Bombardment Thruster > --- UTILITY ---------- Improved Heat Sink High-capacity Storage Unit Targeting Computer Core Shielding > --- WEAPON ----------- Cooled Pulse Rifle Light Assault Rifle > --- INVENTORY -------- Ion Engine Heat Sink Large Battery High-capacity Matter Pod Light Armor Plating Light Armor Plating Scrap Shield Light Assault Rifle Scrap Shield Fragment Scrap Shield Fragment Scrap Shield Fragment [Rating: 30] Favorites ----------- Power Ion Engine Engine Ion Engine Power Core Light Nuclear Core Propulsion Compact Wheel Leg Carbon-fiber Leg Wheel Compact Wheel Flight Unit Xenon Bombardment Thruster Utility High-capacity Storage Unit Device Improved Heat Sink Storage High-capacity Storage Unit Processor Targeting Computer Protection Core Shielding Weapon Assault Rifle Energy Gun Medium Laser Ballistic Gun Assault Rifle Build | -11 -10 -10 -8 ------- Run | Yrd Mat Sub Mat Slots Evolved 4 | . . . 4 Power . | . . . . Propulsion 2 | . . . 2 Utility 2 | . . . 2 Weapon . | . . . . Parts Attached 76 | 6 15 7 48 Power 12 | 1 3 1 7 Engine 10 | 1 3 1 5 Core 2 | . . . 2 Reactor . | . . . . Propulsion 26 | 2 6 3 15 Treads . | . . . . Leg 5 | . . . 5 Wheel 17 | 2 6 3 6 Hover . | . . . . Flight 4 | . . . 4 Utility 18 | 1 2 . 15 Device 4 | . . . 4 Storage 2 | 1 1 . . Processor 1 | . . . 1 Hackware . | . . . . Protection 11 | . 1 . 10 Artifact . | . . . . Weapon 20 | 2 4 3 11 Energy Gun 10 | . 2 . 8 Energy Cannon . | . . . . Ballistic Gun 10 | 2 2 3 3 Ballistic Cannon . | . . . . Launcher . | . . . . Special Weapon . | . . . . Impact Weapon . | . . . . Slashing Weapon . | . . . . Piercing Weapon . | . . . . Special Melee Weapon . | . . . . Unidentified Prototypes 2 | . . . 2 Parts Lost 26 | . 1 6 19 Power 4 | . . 2 2 Propulsion 8 | . . 2 6 Utility 8 | . . . 8 Weapon 6 | . 1 2 3 Highest Loss Streak 12 | . 1 4 12 To Critical Strikes . | . . . . Average Slot Usage (%) 93 | . 98 97 87 Engine 10 | . 14 13 6 Core 1 | . . . 2 Leg 3 | . . . 8 Wheel 23 | . 27 26 17 Device 2 | . . . 6 Storage 12 | . 14 14 9 Processor 3 | . . . 9 Protection 11 | . 12 14 8 Energy Gun 9 | . 1 24 12 Ballistic Gun 14 | . 26 2 5 Naked Turns . | . . . . Heaviest Build 72 | 14 50 50 72 Greatest Support 52 | 32 32 30 52 Greatest Overweight (x) 17 | 4 3 1 17 Average Overweight (x) . | . . 1 1 Largest Inventory Capacity 20 | 8 20 20 20 Average Capacity 17 | 7 14 20 20 Most Carried 20 | 1 17 20 20 Average Carried 13 | . 8 18 16 Final Capacity 20 | 8 20 20 20 Final Carried 16 | 1 16 15 10 Class Distribution -------------------- 63% | Mutant 36% | Scavenger-Mutant Dominant Class ---------------- Mutant | -10/Materials Mutant | -10/Subcaves Scavenger-Mutant | -8/Materials Resources | -11 -10 -10 -8 ----------- Run | Yrd Mat Sub Mat Matter Collected 1617 | 209 741 103 564 Remotely . | . . . . Salvage Created 2480 | . 771 235 1474 Parts 149 | . 54 12 83 Haulers Intercepted 3 | . 2 . 1 Recyclers Shooed 4 | . 3 . 1 Parts Field Recycled . | . . . . Retrieved Matter . | . . . . Parts Self-Destructed 9 | . . 9 . Prevented . | . . . . Kills | -11 -10 -10 -8 ------- Run | Yrd Mat Sub Mat Combat Hostiles Destroyed 49 | . 15 7 27 Guns 48 | . 15 7 26 Classes Destroyed 14 | . 6 1 7 Worker 5 | . 1 . 4 Tunneler 1 | . . . 1 Hauler 3 | . 2 . 1 Recycler 3 | . 2 . 1 Watcher 4 | . 2 . 2 Swarmer 10 | . 5 3 2 Grunt 23 | . 10 . 13 Brawler 2 | . . . 2 Duelist 1 | . . . 1 Sentry 4 | . . . 4 Specialist 2 | . . . 2 Hunter 2 | . . . 2 Heavy 1 | . . . 1 Subdweller 4 | . . 4 . Best Kill Streak 5 | . 4 3 5 Combat Bots Only 5 | . 3 3 5 Max Kills in Single Turn 1 | . 1 1 1 Gunslinging . | . . . . Exploded . | . . . . Melee . | . . . . Uniques/NPCs Destroyed . | . . . . Combat | -11 -10 -10 -8 -------- Run | Yrd Mat Sub Mat Hostile Shots Fired 441 | . 53 161 227 Missed 144 | . 11 71 62 Damage Taken 4146 | . 434 801 2911 Core 792 | . 81 149 562 Absorbed by Shields . | . . . . Redirected to Shielding 50 | . 17 27 6 Regen/Repaired (Parts) 25 | . 25 . . Core Remaining (%) 54 | 100 . 8 . Volleys Fired 219 | . 69 39 111 Largest 2 | . 2 2 2 Hottest 130 | . 100 100 130 Shots Fired 423 | . 138 75 210 Gun 423 | . 138 75 210 Cannon . | . . . . Launcher . | . . . . Special . | . . . . Kinetic 224 | . 130 24 70 Thermal 199 | . 8 51 140 Explosive . | . . . . Electromagnetic . | . . . . Robot Hit Streak 16 | . 11 11 16 Robot Miss Streak 5 | . 5 4 4 Penetration Max . | . . . . Secondary Targets 7 | . 1 1 5 Max Gunslinging Chain 1 | . 1 1 1 Shots Hit Robots 286 | . 82 44 160 Core Hits 156 | . 36 15 105 Critical Kills . | . . . . Critical Parts Destroyed 1 | . 1 . . Critical Strikes 7 | . 1 1 5 Burn 6 | . . 1 5 Destroy 1 | . 1 . . Melee Attacks . | . . . . Impact . | . . . . Slashing . | . . . . Piercing . | . . . . Sneak Attacks . | . . . . Combat Hostiles . | . . . . Follow-up Attacks . | . . . . Damage Inflicted 4058 | . 1016 478 2564 Guns 4058 | . 1016 478 2564 Cannons . | . . . . Explosions . | . . . . Melee . | . . . . Ramming . | . . . . Kinetic 1588 | . 927 102 559 Thermal 2470 | . 89 376 2005 Explosive . | . . . . Electromagnetic . | . . . . Impact . | . . . . Slashing . | . . . . Piercing . | . . . . Highest Corruption 1 | . . . 1 Average Corruption 1 | . . . 1 Corruption Purged . | . . . . Corruption Blocked . | . . . . Effects 4 | . . . 4 Parts Fused 1 | . . . 1 Data Loss (major) 2 | . . . 2 Misfires 1 | . . . 1 Overload Shots . | . . . . Overflow Damage . | . . . . Projectiles . | . . . . Explosions . | . . . . Melee . | . . . . Knockbacks . | . . . . Impact . | . . . . Kinetic . | . . . . Secondary . | . . . . Self-Inflicted Damage . | . . . . Shots . | . . . . Rammed 1 | . 1 . . Targets Rammed 1 | . 1 . . Kicked . | . . . . Crushed . | . . . . Highest Temperature 270 | . 97 11 270 Average Temperature 83 | . 45 4 92 Received Heat Transfer 1380 | . 186 438 756 Siege Activations . | . . . . Robots Corrupted . | . . . . Combat Hostiles . | . . . . Parts Fried . | . . . . Impact Corruptions . | . . . . Robots Melted 1 | . . . 1 Combat Hostiles 1 | . . . 1 Parts Melted 7 | . . 2 5 Heat Transferred 5643 | . 259 1184 4200 Parts Sabotaged . | . . . . Parts Stolen . | . . . . Parts Stripped . | . . . . Power Chain Reactions . | . . . . Alert | -11 -10 -10 -8 ------- Run | Yrd Mat Sub Mat Peak Influence 853 | . 212 . 853 Initial 655 | . . . 655 Average 356 | . 88 . 665 Maximum Alert Level 3 | . 1 . 3 Low Security (%) 53 | 100 99 . . Level 1 . | . . . 1 Level 2 27 | . . . 58 Level 3 18 | . . . 39 Level 4 . | . . . . Level 5 . | . . . . High Security . | . . . . Max Security . | . . . . Squads Dispatched 11 | . 4 . 7 Investigation 3 | . 3 . . Extermination . | . . . . Reinforcement 4 | . 1 . 3 Assault . | . . . . Garrison 4 | . . . 4 Intercept . | . . . . Searches Triggered 1 | . . . 1 Construction Impeded . | . . . . Haulers Reinforced . | . . . . Active Scanning Responses . | . . . . Cargo Convoy Interrupts . | . . . . Stealth | -11 -10 -10 -8 --------- Run | Yrd Mat Sub Mat Distress Signals 1 | . 1 . . Communications Jammed . | . . . . Distress Signals . | . . . . Times Spotted 129 | . 24 69 36 Peak Tracking Total 6 | . 4 6 6 Tactical Retreats 5 | . 1 4 . Traps | -11 -10 -10 -8 ------- Run | Yrd Mat Sub Mat Traps Triggered 3 | . 3 . . Indirectly . | . . . . Trap Hack Attempts . | . . . . Triggered . | . . . . Disarmed . | . . . . Reprogrammed . | . . . . Reused . | . . . . Traps Extracted . | . . . . Installed . | . . . . Triggered . | . . . . Machines | -11 -10 -10 -8 ---------- Run | Yrd Mat Sub Mat Machines Disabled 3 | . 1 . 2 Max in Single Turn 1 | . 1 . 1 Garrison Access 1 | . . . 1 Machines Repaired . | . . . . Machines Dismantled . | . . . . Machines Sabotaged . | . . . . Overloaded Fab Kills . | . . . . Hacking | -11 -10 -10 -8 --------- Run | Yrd Mat Sub Mat Machines Accessed 7 | . 4 . 3 Terminals 4 | . 2 . 2 Fabricators . | . . . . Repair Stations 1 | . 1 . . Recycling Units 1 | . 1 . . Scanalyzers . | . . . . Garrison Access 1 | . . . 1 Total Hacks 17 | . 9 . 8 Successful 11 | . 7 . 4 Failed 6 | . 2 . 4 Catastrophic . | . . . . Database Lockouts . | . . . . Manual . | . . . . Terminals 11 | . 5 . 6 Fabricators . | . . . . Repair Stations 3 | . 3 . . Recycling Units 1 | . 1 . . Scanalyzers . | . . . . Garrison Access 2 | . . . 2 Terminal Hacks 6 | . 3 . 3 Locate Traps 1 | . 1 . . Dispatch Records 1 | . 1 . . Maintenance Status 1 | . . . 1 Surveillance Status 1 | . . . 1 Zone Layout 2 | . 1 . 1 Fabricator Hacks . | . . . . Repair Station Hacks 3 | . 3 . . Scan Component 2 | . 2 . . Repair 1 | . 1 . . Recycling Unit Hacks 1 | . 1 . . Report Inventory 1 | . 1 . . Scanalyzer . | . . . . Garrison Access Hacks 1 | . . . 1 Seal Access 1 | . . . 1 Unauthorized Hacks . | . . . . Terminals . | . . . . Fabricators . | . . . . Repair Stations . | . . . . Recycling Units . | . . . . Scanalyzers . | . . . . Garrison Access . | . . . . Data Cores Recovered . | . . . . Used . | . . . . Hacking Detections 5 | . 3 . 2 Full Trace Events 1 | . 1 . . Feedback Events . | . . . . Feedback Blocked . | . . . . Robot Schematics Acquired . | . . . . Robots Built . | . . . . Authchips . | . . . . Time . | . . . . Total Robot Build Rating . | . . . . Part Schematics Acquired . | . . . . Parts Built . | . . . . Authchips . | . . . . Time . | . . . . Total Part Build Rating . | . . . . Parts Repaired 1 | . 1 . . Time 26 | . 26 . . Parts Recycled . | . . . . Recycled Matter . | . . . . Retrieved Matter . | . . . . Retrieved Components . | . . . . Parts Scanalyzed . | . . . . Part Schematics Acquired . | . . . . Parts Damaged . | . . . . Bothacking | -11 -10 -10 -8 ------------ Run | Yrd Mat Sub Mat Used RIF Installer . | . . . . Robots Hacked . | . . . . Non-combat . | . . . . Combat . | . . . . Robot Hacks Applied . | . . . . Relay Couplers Released . | . . . . Fabnet Peak Effective % . | . . . . Robots Rewired . | . . . . Allies Hacked . | . . . . Hacks Repelled . | . . . . Allies | -11 -10 -10 -8 -------- Run | Yrd Mat Sub Mat Total Allies . | . . . . Largest Group . | . . . . Highest-Rated Group . | . . . . Highest-Rated Ally . | . . . . Total Orders . | . . . . Ally Attacks . | . . . . Total Damage . | . . . . Kills . | . . . . Allies Corrupted . | . . . . Allies Melted . | . . . . Intel | -11 -10 -10 -8 ------- Run | Yrd Mat Sub Mat Robot Analysis Total . | . . . . Derelict Logs Recovered . | . . . . Drone Launches . | . . . . Drone Recoveries . | . . . . Exploration | -11 -10 -10 -8 ------------- Run | Yrd Mat Sub Mat Turns Passed 3137 | 58 1330 525 1224 Spaces Moved 1766 | 37 848 353 528 Core 19 | 17 . . 2 Treads . | . . . . Legs 97 | . . . 97 Wheels 1648 | 20 848 353 427 Hover . | . . . . Flight 2 | . . . 2 Fastest Speed 50 | 50 100 105 105 Average Speed 114 | 125 110 105 128 Slowest Speed 900 | 250 145 107 900 Overloaded Moves . | . . . . Propulsion Burnouts . | . . . . Robots Hopped . | . . . . Cave-ins Triggered . | . . . . Exploration Rate (%) 40 | 4 99 22 38 Regions Visited 3 Branch Regions 1 Pre-discovered Areas . | . . . . Known Exits Taken . | . . . . Unknown Exits Taken 3 | 1 1 1 . Scrap Searched . | . . . . Spaces Dug . | . . . . Terrain Destroyed . | . . . . Melee . | . . . . Projectile . | . . . . AOE . | . . . . Terrain Rammed . | . . . . Walls Destroyed . | . . . . Machines Disabled . | . . . . Actions | -11 -10 -10 -8 --------- Run | Yrd Mat Sub Mat Total 2459 | 45 1105 438 871 Wait 317 | 2 153 30 132 Move 1763 | 36 847 352 528 Hop . | . . . . Pick Up 40 | 1 13 6 20 Fast Attach 27 | 6 2 . 19 Attach 26 | . 1 5 20 Detach 3 | . . . 3 Swap 23 | . 12 2 9 Drop 37 | . 7 4 26 Fire 219 | . 69 39 111 Melee . | . . . . Ram 1 | . 1 . . Kick . | . . . . Crush . | . . . . Escape Stasis . | . . . . Rewire . | . . . . Trap . | . . . . Miscellaneous 3 | . . . 3 Route ------- -11/Scrapyard -10/Materials (discovered 5 exits: [*Mat x3] / [*Min] / [*Sub]) -10/Subcaves (discovered 2 exits: *Mat / [*Rec]) -8/Materials (discovered 1 exit: [*Fac]) History --------- Turn | Location | Event 39 | -11/Scrapyard | Discovered new exit (range 16) 59 | -11/Scrapyard | Entered Materials 195 | -10/Materials | Discovered new exit (range 4) 317 | -10/Materials | Build established: Mutant 345 | -10/Materials | Discovered new exit (range 15) 982 | -10/Materials | Discovered new exit (range 6) 1071 | -10/Materials | Discovered new exit (range 8) 1268 | -10/Materials | Repaired Com. Wheel 1381 | -10/Materials | Discovered new exit (range 8) 1389 | -10/Materials | Entered Subcaves 1559 | -10/Subcaves | A swath of the cavern ceiling suddenly collapsed 1799 | -10/Subcaves | Discovered new exit (range 15) 1815 | -10/Subcaves | Discovered new exit (range 14) 1882 | -10/Subcaves | Core integrity fell below 50% 1904 | -10/Subcaves | Core integrity fell below 20% 1914 | -10/Subcaves | Entered Materials 1914 | -8/Materials | Evolved 4 slots: Propulsion x2, Utility x2 1936 | -8/Materials | Lost 4 parts (1p2n1w) 2314 | -8/Materials | Search patrols dispatched 2391 | -8/Materials | Garrison activated, responded to threat 2471 | -8/Materials | Discovered new exit (range 13) 2480 | -8/Materials | Build established: Scavenger-Mutant 2676 | -8/Materials | Lost 3 parts (2n1u) 2747 | -8/Materials | Garrison activated, responded to threat 3092 | -8/Materials | Core integrity fell below 50% 3124 | -8/Materials | Core integrity fell below 20% 3138 | -8/Materials | Destroyed by G-47 Trooper with Particle Gun Last Messages --------------- 03106_ X-57 Shotgunner destroyed. 03106_ Switching to secondary target: H-61 Shepherd. 03107_ H-61 Shepherd calls for reinforcements. 03107_ ALERT: Hostile activity reported, dispatching reinforcements to area. 03110_ System corrupted: Lgt. Assault Rifle fused. 03118_ Assault Rifle destroyed. 03118_ Knocked back. 03119_ Acquired 12 matter. 03125_ Penetrated by Slug. 03125_ Knocked back. 03129_ Rnf. Ion Engine destroyed. 03130_ System corrupted: Substantial component data lost. 03130_ H-61 Shepherd destroyed. 03130_ Switching to secondary target: G-47 Trooper. 03132_ Lgt. Armor Plating destroyed. 03135_ K-01 Serf cleans the Pressure Siphon. 03136_ Particle Gun melted. 03136_ G-47 Trooper destroyed. 03136_ Switching to secondary target: G-47 Trooper. Map ----- +----------------------------------------------------+ | ??????????????????????????????????????????? | | ??????????????????????????????????????????? | | ??????????????????????????????????????????? | | ??????????????????????????????????????????? | | ??????????????????????????????????????????? | | ??????????????????????????????????????????? | | ##????????????????????????????????????????? | | # ########????????????????????????????????? | | ! #????????????????????????????????? | | """%[!! #????????????????????????????????? | | "" !! #????????????? ??????????????????? | | """ #????????????# ???????????????? | | """ "" #????????????# ????? ?????????? | | """ G" #????????????# ???? #???????? | | "" #??########### ??? ????????? | | = #??# ! !#^ ? ???????? | | ####+######## #a ???????? | | ??# + """ """ # ???????? | | ### ####### """ """ # " " #??????? | | #?????# """ """ # "Y" ???????? | | ### #?????# # """ #??????? | | ??# #?????# !! % # ???????? | | ??# #?????# ! %% # ???????????? | | ??# #??###########+;# #??????????????? | | ??# T % #??????????????? | | ??# @o#??????????????? | | ??# %#??????????????? | | ??############## #??????????????? | | ???????????????# """" #??????????????? | | ???????????????# k"""" [ #??????????????? | | ???????????????# """"%!!%########???????? | | ???????????????# !!=*%# #???????? | | ???????????????# !*%=!# T !#???????? | | ???????????????# """"!!!=#% #???????? | | ???????????????# """"!!*%%[ #???????? | | ???????????????# """"!g%[[= #???????? | | ???????????????# !=g# #???????? | | ???????????????# *###""###???????? | | ???????????????# ? ????????? | | ???????????????######### ??????? | | ???????????????????????# ?????? | | ???????????????????????####+######+###????? | | ??????????????????????????? ?????????????? | | ??????????????????????????? ?????????????? | | ??????????????????????????? ?????????????? | | ??????????????????????????? **????????????? | | ??????????????????????????? **????????????? | | ??????????????????????????? ????????????? | | ????????????????????????????##????????????? | | ??????????????????????????????????????????? | +----------------------------------------------------+ Best States ------------- Heat Dissipation 45 Energy Generation 14 Energy Capacity 265 Matter Stores 300 Matter Capacity 300 Sight Range 16 Terrain Scan Density 10 Armor Coverage 800 Core Shielding 20 Evasion (%) 40 Targeting Accuracy 5 Item Schematics ----------------- None Robot Schematics ------------------ None Fabricated ------------ Nothing Alien Tech Used ----------------- None Achievements -------------- None Challenges ------------ None Game ------ Seed ThrusterTachyonBeamcaster Manual? 0 Play Time 00:32:44 Cumulative 216.9 hours Start 2024.04.04 @ 18:20:02 End 2024.04.04 @ 18:52:17 Sessions 1 Manual Loads 0 Difficulty Rogue Special Mode None Game No. 169 Rogue 157 Adventurer 12 Explorer 0 Win Type - Total 1 Types 1/0/0/0/0/0/0/0/0 Lore% 28 Gallery% 45 Achievement% 32 Wizard Run 0 Options --------- Layout 1 ASCII 0 Keyboard 0 Movement Mouse Keybinds 0 Fullscreen 1 Font 32/SmallcapsGlow Map View 77x35 Zoom Use 0% Tactical HUD 1 Map Filters NONE Filters NONE Steam 1 RUN: bf1b85db-8874-4eb7-8672-414a9392a186